[Event "Titled Tuesday Blitz August 15 Late 2023"]
[White "MFatigue"]
[Black "Kovacevic, Radmila"]
[BlackFideId "933171"]
[WhiteElo "2510"]
[BlackElo "2272"]
[Result "1-0"]
[Round "10"]
[TimeControl "180+1"]
[Date "2023.08.15"]
[WhiteClock "0:00:08"]
[BlackClock "0:00:00"]
[Board "53"]

1. e4 {[%clk 0:03:00]}  e5 {[%clk 0:03:00]} 2. Nf3 {[%clk 0:03:00]}  d5 {[%clk 0:02:59]} 3. d4 {[%clk 0:03:01]}  dxe4 {[%clk 0:02:59]} 4. Nxe5 {[%clk 0:03:01]}  Bd6 {[%clk 0:02:59]} 5. Nc4 {[%clk 0:03:01]}  Be7 {[%clk 0:02:59]} 6. Nc3 {[%clk 0:03:02]}  Nf6 {[%clk 0:02:59]} 7. Bg5 {[%clk 0:02:57]}  O-O {[%clk 0:02:58]} 8. Be2 {[%clk 0:02:56]}  h6 {[%clk 0:02:57]} 9. Bh4 {[%clk 0:02:55]}  Bf5 {[%clk 0:02:57]} 10. O-O {[%clk 0:02:54]}  Nc6 {[%clk 0:02:53]} 11. Ne3 {[%clk 0:02:54]}  Bh7 {[%clk 0:02:50]} 12. d5 {[%clk 0:02:47]}  Ne5 {[%clk 0:02:47]} 13. Qd4 {[%clk 0:02:42]}  Nc6 {[%clk 0:01:59]} 14. Qa4 {[%clk 0:02:33]}  Ne5 {[%clk 0:01:29]} 15. Bg3 {[%clk 0:02:23]}  Bd6 {[%clk 0:01:21]} 16. Nb5 {[%clk 0:02:20]}  a6 {[%clk 0:01:14]} 17. Nxd6 {[%clk 0:02:19]}  cxd6 {[%clk 0:01:14]} 18. Bxe5 {[%clk 0:02:17]}  dxe5 {[%clk 0:01:13]} 19. Rfd1 {[%clk 0:01:49]}  b5 {[%clk 0:01:10]} 20. Qb3 {[%clk 0:01:47]}  Qd6 {[%clk 0:01:08]} 21. a4 {[%clk 0:01:42]}  b4 {[%clk 0:00:54]} 22. Nc4 {[%clk 0:01:39]}  Qb8 {[%clk 0:00:53]} 23. a5 {[%clk 0:01:30]}  Nd7 {[%clk 0:00:52]} 24. Nb6 {[%clk 0:01:05]}  Nxb6 {[%clk 0:00:51]} 25. axb6 {[%clk 0:01:06]}  Qxb6 {[%clk 0:00:51]} 26. c4 {[%clk 0:00:50]}  Qc5 {[%clk 0:00:46]} 27. Qe3 {[%clk 0:00:47]}  Qa7 {[%clk 0:00:30]} 28. Qxa7 {[%clk 0:00:44]}  Rxa7 {[%clk 0:00:29]} 29. Ra5 {[%clk 0:00:45]}  f5 {[%clk 0:00:27]} 30. c5 {[%clk 0:00:41]}  Rd8 {[%clk 0:00:26]} 31. Rxa6 {[%clk 0:00:37]}  Rc7 {[%clk 0:00:21]} 32. c6 {[%clk 0:00:31]}  Kf7 {[%clk 0:00:16]} 33. d6 {[%clk 0:00:27]}  Rcc8 {[%clk 0:00:14]} 34. Bc4+ {[%clk 0:00:26]}  Kf8 {[%clk 0:00:09]} 35. Bb3 {[%clk 0:00:14]}  Bg8 {[%clk 0:00:08]} 36. Bxg8 {[%clk 0:00:14]}  Kxg8 {[%clk 0:00:09]} 37. d7 {[%clk 0:00:12]}  Rc7 {[%clk 0:00:08]} 38. Rb6 {[%clk 0:00:12]}  Kf7 {[%clk 0:00:07]} 39. Kf1 {[%clk 0:00:11]}  Ke7 {[%clk 0:00:07]} 40. Ke2 {[%clk 0:00:11]}  f4 {[%clk 0:00:06]} 41. Rxb4 {[%clk 0:00:07]}  Rxc6 {[%clk 0:00:05]} 42. Rxe4 {[%clk 0:00:08]}  Re6 {[%clk 0:00:05]} 43. Rd5 {[%clk 0:00:07]}  Rxd7 {[%clk 0:00:04]} 44. Rdxe5 {[%clk 0:00:07]}  Rxe5 {[%clk 0:00:04]} 45. Rxe5+ {[%clk 0:00:08]}  Kf6 {[%clk 0:00:00]} 46. Rb5 {[%clk 0:00:08]} 1-0


[Site "https://www.chess.com"]

[Event "Titled Tuesday Blitz August 15 Late 2023"]
[White "GaiozNigalidze"]
[Black "Merino Garcia, Rafael II"]
[BlackFideId "2209128"]
[WhiteElo "2695"]
[BlackElo "2489"]
[Result "0-1"]
[Round "10"]
[TimeControl "180+1"]
[Date "2023.08.15"]
[WhiteClock "0:00:06"]
[BlackClock "0:00:35"]
[Board "54"]

1. e4 {[%clk 0:03:00]}  d6 {[%clk 0:02:59]} 2. b4 {[%clk 0:02:59]}  Nd7 {[%clk 0:02:58]} 3. c4 {[%clk 0:02:59]}  e5 {[%clk 0:02:54]} 4. Nc3 {[%clk 0:02:59]}  g6 {[%clk 0:02:54]} 5. Nf3 {[%clk 0:02:59]}  Bg7 {[%clk 0:02:54]} 6. g4 {[%clk 0:02:57]}  Ne7 {[%clk 0:02:54]} 7. h4 {[%clk 0:02:57]}  O-O {[%clk 0:02:53]} 8. h5 {[%clk 0:02:56]}  f5 {[%clk 0:02:54]} 9. hxg6 {[%clk 0:02:56]}  hxg6 {[%clk 0:02:50]} 10. gxf5 {[%clk 0:02:56]}  gxf5 {[%clk 0:02:50]} 11. Ng5 {[%clk 0:02:56]}  Nf6 {[%clk 0:02:49]} 12. Qf3 {[%clk 0:02:50]}  f4 {[%clk 0:02:44]} 13. c5 {[%clk 0:02:41]}  Bg4 {[%clk 0:02:44]} 14. Bc4+ {[%clk 0:02:19]}  d5 {[%clk 0:02:29]} 15. Nxd5 {[%clk 0:02:19]}  Nexd5 {[%clk 0:02:25]} 16. Bxd5+ {[%clk 0:01:27]}  Qxd5 {[%clk 0:02:24]} 17. Qxg4 {[%clk 0:01:16]}  Nxe4 {[%clk 0:01:30]} 18. Qf3 {[%clk 0:00:10]}  Nf6 {[%clk 0:01:19]} 19. Qxd5+ {[%clk 0:00:10]}  Nxd5 {[%clk 0:01:19]} 20. Ne4 {[%clk 0:00:11]}  Nxb4 {[%clk 0:01:17]} 21. Rb1 {[%clk 0:00:11]}  a5 {[%clk 0:01:13]} 22. Ba3 {[%clk 0:00:10]}  Nc2+ {[%clk 0:01:12]} 23. Kd1 {[%clk 0:00:10]}  Nxa3 {[%clk 0:01:13]} 24. Rxb7 {[%clk 0:00:10]}  Rab8 {[%clk 0:01:09]} 25. Rxb8 {[%clk 0:00:08]}  Rxb8 {[%clk 0:01:08]} 26. Ke2 {[%clk 0:00:09]}  Nc2 {[%clk 0:01:03]} 27. Kd3 {[%clk 0:00:07]}  Nd4 {[%clk 0:00:59]} 28. Kc4 {[%clk 0:00:07]}  c6 {[%clk 0:00:58]} 29. Rg1 {[%clk 0:00:07]}  Rb4+ {[%clk 0:00:56]} 30. Kd3 {[%clk 0:00:08]}  Rb2 {[%clk 0:00:52]} 31. Rg6 {[%clk 0:00:07]}  Rxa2 {[%clk 0:00:48]} 32. Rd6 {[%clk 0:00:07]}  Ra3+ {[%clk 0:00:46]} 33. Kc4 {[%clk 0:00:08]}  Ra4+ {[%clk 0:00:39]} 34. Kd3 {[%clk 0:00:08]}  Nf5 {[%clk 0:00:37]} 35. Rd8+ {[%clk 0:00:08]}  Kh7 {[%clk 0:00:36]} 36. f3 {[%clk 0:00:06]}  Rd4+ {[%clk 0:00:35]} 0-1


[Site "https://www.chess.com"]

[Event "Titled Tuesday Blitz August 15 Late 2023"]
[White "Goltsev, Dmitry"]
[Black "Gurevich, Dmitry"]
[WhiteFideId "24176710"]
[BlackFideId "2000407"]
[WhiteElo "2624"]
[BlackElo "2477"]
[Result "1-0"]
[Round "10"]
[TimeControl "180+1"]
[Date "2023.08.15"]
[WhiteClock "0:00:49"]
[BlackClock "0:00:52"]
[Board "55"]

1. e4 {[%clk 0:02:59]}  c5 {[%clk 0:02:59]} 2. Nf3 {[%clk 0:02:59]}  d6 {[%clk 0:02:59]} 3. d4 {[%clk 0:02:59]}  cxd4 {[%clk 0:02:59]} 4. Nxd4 {[%clk 0:03:00]}  Nf6 {[%clk 0:02:59]} 5. Nc3 {[%clk 0:03:01]}  Nc6 {[%clk 0:02:59]} 6. f3 {[%clk 0:03:00]}  Nxd4 {[%clk 0:02:58]} 7. Qxd4 {[%clk 0:03:00]}  g6 {[%clk 0:02:58]} 8. Bg5 {[%clk 0:02:57]}  Bg7 {[%clk 0:02:58]} 9. Qd2 {[%clk 0:02:56]}  h6 {[%clk 0:02:49]} 10. Be3 {[%clk 0:02:55]}  Be6 {[%clk 0:02:48]} 11. Bb5+ {[%clk 0:02:53]}  Bd7 {[%clk 0:02:48]} 12. Bc4 {[%clk 0:02:53]}  Rc8 {[%clk 0:02:44]} 13. Bb3 {[%clk 0:02:53]}  a5 {[%clk 0:02:42]} 14. O-O-O {[%clk 0:02:48]}  b5 {[%clk 0:02:36]} 15. a4 {[%clk 0:02:45]}  bxa4 {[%clk 0:02:33]} 16. Nxa4 {[%clk 0:02:45]}  Rb8 {[%clk 0:02:32]} 17. g4 {[%clk 0:02:39]}  Qc7 {[%clk 0:02:26]} 18. Kb1 {[%clk 0:02:36]}  O-O {[%clk 0:02:22]} 19. Bxh6 {[%clk 0:01:53]}  Bxa4 {[%clk 0:02:20]} 20. Bxg7 {[%clk 0:01:53]}  Kxg7 {[%clk 0:02:16]} 21. Bxa4 {[%clk 0:01:53]}  Rb4 {[%clk 0:02:16]} 22. Bb3 {[%clk 0:01:47]}  Rfb8 {[%clk 0:02:14]} 23. g5 {[%clk 0:01:41]}  Nh5 {[%clk 0:02:11]} 24. Qd5 {[%clk 0:01:33]}  e6 {[%clk 0:01:36]} 25. Qxd6 {[%clk 0:01:31]}  Qxd6 {[%clk 0:01:36]} 26. Rxd6 {[%clk 0:01:31]}  a4 {[%clk 0:01:35]} 27. Ba2 {[%clk 0:01:25]}  Rxb2+ {[%clk 0:01:36]} 28. Ka1 {[%clk 0:01:26]}  Rxc2 {[%clk 0:01:35]} 29. Ra6 {[%clk 0:01:16]}  Rb4 {[%clk 0:01:31]} 30. Ra7 {[%clk 0:01:14]}  Nf4 {[%clk 0:01:29]} 31. h4 {[%clk 0:01:09]}  Rf2 {[%clk 0:01:21]} 32. Rb1 {[%clk 0:00:55]}  Rxb1+ {[%clk 0:01:19]} 33. Kxb1 {[%clk 0:00:55]}  Rxf3 {[%clk 0:01:12]} 34. Rxa4 {[%clk 0:00:54]}  Rh3 {[%clk 0:01:11]} 35. e5 {[%clk 0:00:50]}  Rxh4 {[%clk 0:01:06]} 36. Bb3 {[%clk 0:00:50]}  Ne2 {[%clk 0:00:52]} 37. Rxh4 {[%clk 0:00:49]} 1-0


[Site "https://www.chess.com"]

[Event "Titled Tuesday Blitz August 15 Late 2023"]
[White "Przybylski, Wojciech"]
[Black "Radivojevic, Ivan"]
[WhiteFideId "1117599"]
[BlackFideId "928461"]
[WhiteElo "2556"]
[BlackElo "2446"]
[Result "1-0"]
[Round "10"]
[TimeControl "180+1"]
[Date "2023.08.15"]
[WhiteClock "0:01:02"]
[BlackClock "0:00:04"]
[Board "59"]

1. e4 {[%clk 0:03:00]}  c6 {[%clk 0:03:00]} 2. d4 {[%clk 0:02:59]}  d5 {[%clk 0:03:01]} 3. Nc3 {[%clk 0:02:58]}  dxe4 {[%clk 0:03:01]} 4. Nxe4 {[%clk 0:02:58]}  Nf6 {[%clk 0:03:01]} 5. Nc3 {[%clk 0:02:58]}  Bf5 {[%clk 0:03:00]} 6. Nf3 {[%clk 0:02:56]}  e6 {[%clk 0:03:00]} 7. g3 {[%clk 0:02:56]}  Bd6 {[%clk 0:02:53]} 8. Bg2 {[%clk 0:02:56]}  Nbd7 {[%clk 0:02:54]} 9. O-O {[%clk 0:02:55]}  Qc7 {[%clk 0:02:54]} 10. a4 {[%clk 0:02:55]}  O-O-O {[%clk 0:02:49]} 11. a5 {[%clk 0:02:54]}  a6 {[%clk 0:02:49]} 12. Be3 {[%clk 0:02:52]}  h5 {[%clk 0:02:41]} 13. Bg5 {[%clk 0:02:46]}  Bg4 {[%clk 0:02:37]} 14. h3 {[%clk 0:02:41]}  Bxf3 {[%clk 0:02:37]} 15. Qxf3 {[%clk 0:02:40]}  Rdf8 {[%clk 0:02:33]} 16. h4 {[%clk 0:02:26]}  Nd5 {[%clk 0:02:26]} 17. Ne4 {[%clk 0:02:25]}  f6 {[%clk 0:02:24]} 18. Bd2 {[%clk 0:02:24]}  g5 {[%clk 0:02:17]} 19. c4 {[%clk 0:02:20]}  gxh4 {[%clk 0:02:03]} 20. cxd5 {[%clk 0:02:16]}  exd5 {[%clk 0:02:02]} 21. Nxd6+ {[%clk 0:02:15]}  Qxd6 {[%clk 0:02:02]} 22. Bf4 {[%clk 0:02:13]}  Qb4 {[%clk 0:01:47]} 23. gxh4 {[%clk 0:02:02]}  Rfg8 {[%clk 0:01:44]} 24. Qc3 {[%clk 0:01:48]}  Qf8 {[%clk 0:01:25]} 25. Rac1 {[%clk 0:01:36]}  Rg4 {[%clk 0:01:19]} 26. Bg3 {[%clk 0:01:20]}  Qf7 {[%clk 0:01:01]} 27. Bh3 {[%clk 0:01:11]}  Rg7 {[%clk 0:00:59]} 28. Qf3 {[%clk 0:01:08]}  Kd8 {[%clk 0:00:20]} 29. Qf5 {[%clk 0:01:05]}  Rhg8 {[%clk 0:00:16]} 30. Kh2 {[%clk 0:01:04]}  Ke8 {[%clk 0:00:08]} 31. Rfe1+ {[%clk 0:01:03]}  Kd8 {[%clk 0:00:09]} 32. Re3 {[%clk 0:01:03]}  Re8 {[%clk 0:00:07]} 33. Rce1 {[%clk 0:01:02]}  Rxe3 {[%clk 0:00:04]} 34. Rxe3 {[%clk 0:01:02]} 1-0


[Site "https://www.chess.com"]

[Event "Titled Tuesday Blitz August 15 Late 2023"]
[White "dr_tatiana"]
[Black "Fiorito, Joaquin"]
[BlackFideId "180173"]
[WhiteElo "2440"]
[BlackElo "2645"]
[Result "0-1"]
[Round "10"]
[TimeControl "180+1"]
[Date "2023.08.15"]
[WhiteClock "0:00:56"]
[BlackClock "0:01:38"]
[Board "65"]

1. e4 {[%clk 0:03:00]}  c5 {[%clk 0:03:00]} 2. Nc3 {[%clk 0:02:53]}  d6 {[%clk 0:02:59]} 3. d3 {[%clk 0:02:53]}  g6 {[%clk 0:02:58]} 4. f4 {[%clk 0:02:53]}  Bg7 {[%clk 0:02:59]} 5. Nf3 {[%clk 0:02:53]}  Nc6 {[%clk 0:03:00]} 6. g3 {[%clk 0:02:53]}  e6 {[%clk 0:03:00]} 7. Bg2 {[%clk 0:02:54]}  Nge7 {[%clk 0:03:00]} 8. O-O {[%clk 0:02:54]}  O-O {[%clk 0:03:01]} 9. Be3 {[%clk 0:02:53]}  b6 {[%clk 0:03:01]} 10. Qd2 {[%clk 0:02:51]}  d5 {[%clk 0:02:58]} 11. exd5 {[%clk 0:02:48]}  exd5 {[%clk 0:02:59]} 12. d4 {[%clk 0:02:49]}  Nf5 {[%clk 0:02:59]} 13. Bf2 {[%clk 0:02:41]}  Ba6 {[%clk 0:02:55]} 14. Rfe1 {[%clk 0:02:38]}  Ncxd4 {[%clk 0:02:48]} 15. Nxd4 {[%clk 0:02:38]}  cxd4 {[%clk 0:02:32]} 16. Nxd5 {[%clk 0:02:38]}  Rc8 {[%clk 0:02:28]} 17. g4 {[%clk 0:02:17]}  Bb7 {[%clk 0:02:21]} 18. c4 {[%clk 0:02:08]}  dxc3 {[%clk 0:02:18]} 19. bxc3 {[%clk 0:02:08]}  Bxc3 {[%clk 0:02:12]} 20. Qd3 {[%clk 0:01:55]}  Bxd5 {[%clk 0:02:06]} 21. Bxd5 {[%clk 0:01:48]}  Ne7 {[%clk 0:02:02]} 22. Rxe7 {[%clk 0:01:41]}  Qxe7 {[%clk 0:02:01]} 23. Rd1 {[%clk 0:01:41]}  Rfd8 {[%clk 0:01:58]} 24. Qf3 {[%clk 0:01:39]}  Bb4 {[%clk 0:01:57]} 25. f5 {[%clk 0:01:38]}  Bc5 {[%clk 0:01:57]} 26. f6 {[%clk 0:01:36]}  Bxf2+ {[%clk 0:01:56]} 27. Kxf2 {[%clk 0:01:34]}  Qc5+ {[%clk 0:01:54]} 28. Kg2 {[%clk 0:01:30]}  Re8 {[%clk 0:01:47]} 29. Qf4 {[%clk 0:01:21]}  Qc2+ {[%clk 0:01:44]} 30. Rd2 {[%clk 0:01:08]}  Re2+ {[%clk 0:01:44]} 31. Rxe2 {[%clk 0:01:08]}  Qxe2+ {[%clk 0:01:45]} 32. Kg3 {[%clk 0:01:06]}  Rc3+ {[%clk 0:01:38]} 33. Kh4 {[%clk 0:00:57]}  Qe1+ {[%clk 0:01:36]} 34. Kg5 {[%clk 0:00:57]}  h6+ {[%clk 0:01:37]} 35. Kxh6 {[%clk 0:00:56]}  Qh4# {[%clk 0:01:38]} 0-1


[Site "https://www.chess.com"]

[Event "Titled Tuesday Blitz August 15 Late 2023"]
[White "Chor, Kevin"]
[Black "Buchenau, Frank"]
[WhiteFideId "2090740"]
[BlackFideId "4604350"]
[WhiteElo "2555"]
[BlackElo "2436"]
[Result "1-0"]
[Round "10"]
[TimeControl "180+1"]
[Date "2023.08.15"]
[WhiteClock "0:00:11"]
[BlackClock "0:00:09"]
[Board "66"]

1. e4 {[%clk 0:03:00]}  e6 {[%clk 0:02:57]} 2. d4 {[%clk 0:03:00]}  d5 {[%clk 0:02:57]} 3. Nd2 {[%clk 0:03:00]}  c5 {[%clk 0:02:56]} 4. exd5 {[%clk 0:03:00]}  Qxd5 {[%clk 0:02:56]} 5. Ngf3 {[%clk 0:03:01]}  cxd4 {[%clk 0:02:56]} 6. Bc4 {[%clk 0:03:01]}  Qd6 {[%clk 0:02:55]} 7. O-O {[%clk 0:03:01]}  Nf6 {[%clk 0:02:54]} 8. Nb3 {[%clk 0:03:02]}  Nc6 {[%clk 0:02:54]} 9. Nbxd4 {[%clk 0:03:02]}  Nxd4 {[%clk 0:02:54]} 10. Nxd4 {[%clk 0:03:03]}  a6 {[%clk 0:02:50]} 11. Be3 {[%clk 0:02:56]}  Qc7 {[%clk 0:02:48]} 12. Bb3 {[%clk 0:02:56]}  Bd6 {[%clk 0:02:48]} 13. h3 {[%clk 0:02:52]}  e5 {[%clk 0:02:45]} 14. Nf3 {[%clk 0:02:48]}  O-O {[%clk 0:02:43]} 15. c4 {[%clk 0:02:45]}  b6 {[%clk 0:02:40]} 16. Rc1 {[%clk 0:02:12]}  Bb7 {[%clk 0:02:32]} 17. Qe2 {[%clk 0:02:12]}  Rfe8 {[%clk 0:02:28]} 18. Rfd1 {[%clk 0:02:10]}  Bc5 {[%clk 0:02:24]} 19. Ba4 {[%clk 0:02:04]}  Bc6 {[%clk 0:02:07]} 20. Bxc6 {[%clk 0:02:00]}  Qxc6 {[%clk 0:02:07]} 21. Bxc5 {[%clk 0:01:56]}  Qxc5 {[%clk 0:02:06]} 22. a3 {[%clk 0:01:50]}  a5 {[%clk 0:02:06]} 23. Rd2 {[%clk 0:01:41]}  Rac8 {[%clk 0:01:51]} 24. Rc3 {[%clk 0:01:26]}  h6 {[%clk 0:01:41]} 25. Nh4 {[%clk 0:01:24]}  e4 {[%clk 0:01:34]} 26. g4 {[%clk 0:01:13]}  Rcd8 {[%clk 0:01:33]} 27. Nf5 {[%clk 0:01:10]}  h5 {[%clk 0:01:19]} 28. Rg3 {[%clk 0:00:51]}  hxg4 {[%clk 0:01:18]} 29. hxg4 {[%clk 0:00:49]}  Rxd2 {[%clk 0:01:15]} 30. Qxd2 {[%clk 0:00:50]}  g6 {[%clk 0:00:44]} 31. Qg5 {[%clk 0:00:20]}  Nh7 {[%clk 0:00:35]} 32. Qh6 {[%clk 0:00:17]}  Qf8 {[%clk 0:00:35]} 33. Qh4 {[%clk 0:00:17]}  Rd8 {[%clk 0:00:30]} 34. Rh3 {[%clk 0:00:12]}  Rd1+ {[%clk 0:00:09]} 35. Kg2 {[%clk 0:00:11]} 1-0


[Site "https://www.chess.com"]

[Event "Titled Tuesday Blitz August 15 Late 2023"]
[White "Rego, Pedro Filipe"]
[Black "Santos Flores, Alberto"]
[WhiteFideId "1904310"]
[BlackFideId "3601234"]
[WhiteElo "2426"]
[BlackElo "2510"]
[Result "0-1"]
[Round "10"]
[TimeControl "180+1"]
[Date "2023.08.15"]
[WhiteClock "0:00:31"]
[BlackClock "0:01:26"]
[Board "70"]

1. e4 {[%clk 0:03:00]}  e6 {[%clk 0:02:59]} 2. d4 {[%clk 0:03:00]}  d5 {[%clk 0:02:59]} 3. Nc3 {[%clk 0:03:00]}  Nf6 {[%clk 0:02:59]} 4. e5 {[%clk 0:03:00]}  Nfd7 {[%clk 0:02:59]} 5. f4 {[%clk 0:03:01]}  c5 {[%clk 0:02:59]} 6. Nf3 {[%clk 0:03:01]}  Nc6 {[%clk 0:02:59]} 7. Be3 {[%clk 0:02:55]}  Qb6 {[%clk 0:02:59]} 8. a3 {[%clk 0:02:46]}  c4 {[%clk 0:02:56]} 9. Rb1 {[%clk 0:02:39]}  a6 {[%clk 0:02:52]} 10. Be2 {[%clk 0:02:37]}  Be7 {[%clk 0:02:49]} 11. O-O {[%clk 0:02:35]}  g6 {[%clk 0:02:44]} 12. Qe1 {[%clk 0:02:29]}  Qc7 {[%clk 0:02:41]} 13. Qg3 {[%clk 0:02:24]}  b5 {[%clk 0:02:41]} 14. Nd1 {[%clk 0:02:21]}  Bb7 {[%clk 0:02:40]} 15. Nf2 {[%clk 0:02:19]}  O-O-O {[%clk 0:02:39]} 16. Nh3 {[%clk 0:02:10]}  h6 {[%clk 0:02:38]} 17. Ra1 {[%clk 0:01:58]}  Nb6 {[%clk 0:02:37]} 18. Rfb1 {[%clk 0:01:57]}  Kb8 {[%clk 0:02:35]} 19. b3 {[%clk 0:01:56]}  Na5 {[%clk 0:02:30]} 20. Qe1 {[%clk 0:01:55]}  Nc6 {[%clk 0:02:27]} 21. bxc4 {[%clk 0:01:52]}  Nxc4 {[%clk 0:02:26]} 22. Bxc4 {[%clk 0:01:51]}  dxc4 {[%clk 0:02:22]} 23. a4 {[%clk 0:01:44]}  b4 {[%clk 0:02:19]} 24. Nf2 {[%clk 0:01:36]}  Qd7 {[%clk 0:02:13]} 25. Qe2 {[%clk 0:01:25]}  Qd5 {[%clk 0:02:12]} 26. c3 {[%clk 0:01:21]}  a5 {[%clk 0:02:09]} 27. Nd2 {[%clk 0:01:19]}  Nxd4 {[%clk 0:02:05]} 28. Qf1 {[%clk 0:01:14]}  Nc2 {[%clk 0:02:02]} 29. Nxc4 {[%clk 0:01:12]}  Ba6 {[%clk 0:01:55]} 30. cxb4 {[%clk 0:01:07]}  Qxc4 {[%clk 0:01:51]} 31. bxa5+ {[%clk 0:01:03]}  Ka8 {[%clk 0:01:51]} 32. Ra2 {[%clk 0:00:50]}  Qxf1+ {[%clk 0:01:45]} 33. Rxf1 {[%clk 0:00:50]}  Nxe3 {[%clk 0:01:42]} 34. Rc1 {[%clk 0:00:47]}  Rc8 {[%clk 0:01:37]} 35. Re1 {[%clk 0:00:45]}  Nd5 {[%clk 0:01:35]} 36. Ne4 {[%clk 0:00:43]}  Nxf4 {[%clk 0:01:34]} 37. Rb2 {[%clk 0:00:36]}  Rb8 {[%clk 0:01:31]} 38. Rd2 {[%clk 0:00:35]}  Rhd8 {[%clk 0:01:30]} 39. Rc2 {[%clk 0:00:35]}  Rbc8 {[%clk 0:01:26]} 40. Rb2 {[%clk 0:00:31]}  Nd3 {[%clk 0:01:26]} 0-1


[Site "https://www.chess.com"]

[Event "Titled Tuesday Blitz August 15 Late 2023"]
[White "financieru"]
[Black "Mickiewicz, Piotr"]
[BlackFideId "1114891"]
[WhiteElo "2415"]
[BlackElo "2501"]
[Result "0-1"]
[Round "10"]
[TimeControl "180+1"]
[Date "2023.08.15"]
[WhiteClock "0:00:34"]
[BlackClock "0:01:41"]
[Board "71"]

1. d4 {[%clk 0:02:57]}  Nf6 {[%clk 0:02:59]} 2. c4 {[%clk 0:02:57]}  c6 {[%clk 0:02:58]} 3. Nc3 {[%clk 0:02:58]}  d5 {[%clk 0:02:58]} 4. Nf3 {[%clk 0:02:58]}  e6 {[%clk 0:02:56]} 5. Bg5 {[%clk 0:02:58]}  Nbd7 {[%clk 0:02:50]} 6. cxd5 {[%clk 0:02:57]}  exd5 {[%clk 0:02:49]} 7. e3 {[%clk 0:02:56]}  Be7 {[%clk 0:02:44]} 8. Bd3 {[%clk 0:02:56]}  O-O {[%clk 0:02:42]} 9. O-O {[%clk 0:02:56]}  Re8 {[%clk 0:02:42]} 10. Qc2 {[%clk 0:02:57]}  Nf8 {[%clk 0:02:41]} 11. Rab1 {[%clk 0:02:56]}  a5 {[%clk 0:02:38]} 12. a3 {[%clk 0:02:56]}  Ng6 {[%clk 0:02:35]} 13. b4 {[%clk 0:02:54]}  axb4 {[%clk 0:02:35]} 14. axb4 {[%clk 0:02:55]}  Ne4 {[%clk 0:02:33]} 15. Bxe7 {[%clk 0:02:52]}  Qxe7 {[%clk 0:02:33]} 16. b5 {[%clk 0:02:52]}  Bg4 {[%clk 0:02:32]} 17. Nd2 {[%clk 0:02:15]}  Nxd2 {[%clk 0:02:30]} 18. Qxd2 {[%clk 0:02:14]}  Nh4 {[%clk 0:02:31]} 19. Kh1 {[%clk 0:01:27]}  Nf3 {[%clk 0:02:02]} 20. Qc2 {[%clk 0:01:17]}  Qh4 {[%clk 0:01:58]} 21. h3 {[%clk 0:00:57]}  Bxh3 {[%clk 0:01:57]} 22. Bxh7+ {[%clk 0:00:43]}  Kh8 {[%clk 0:01:54]} 23. g3 {[%clk 0:00:34]}  Qh5 {[%clk 0:01:41]} 0-1


[Site "https://www.chess.com"]

[Event "Titled Tuesday Blitz August 15 Late 2023"]
[White "Arutla, Aditya"]
[Black "KorolDimitriy75"]
[WhiteFideId "30961998"]
[WhiteElo "2490"]
[BlackElo "2389"]
[Result "1-0"]
[Round "10"]
[TimeControl "180+1"]
[Date "2023.08.15"]
[WhiteClock "0:01:18"]
[BlackClock "0:00:00"]
[Board "73"]

1. d4 {[%clk 0:03:00]}  Nf6 {[%clk 0:02:59]} 2. Bf4 {[%clk 0:03:00]}  c5 {[%clk 0:02:59]} 3. d5 {[%clk 0:03:00]}  Qb6 {[%clk 0:02:56]} 4. Nc3 {[%clk 0:03:00]}  Qxb2 {[%clk 0:02:53]} 5. Bd2 {[%clk 0:03:00]}  Qb6 {[%clk 0:02:49]} 6. e4 {[%clk 0:03:00]}  d6 {[%clk 0:02:44]} 7. f4 {[%clk 0:03:00]}  Qd8 {[%clk 0:02:42]} 8. Nf3 {[%clk 0:02:57]}  e6 {[%clk 0:02:37]} 9. Bb5+ {[%clk 0:02:57]}  Bd7 {[%clk 0:02:33]} 10. dxe6 {[%clk 0:02:57]}  fxe6 {[%clk 0:02:33]} 11. e5 {[%clk 0:02:55]}  Nd5 {[%clk 0:02:12]} 12. Bxd7+ {[%clk 0:02:37]}  Qxd7 {[%clk 0:01:59]} 13. Nxd5 {[%clk 0:02:34]}  exd5 {[%clk 0:01:59]} 14. O-O {[%clk 0:02:35]}  Nc6 {[%clk 0:01:53]} 15. e6 {[%clk 0:02:34]}  Qc7 {[%clk 0:01:47]} 16. Ng5 {[%clk 0:02:32]}  O-O-O {[%clk 0:00:39]} 17. Nf7 {[%clk 0:02:32]}  Be7 {[%clk 0:00:39]} 18. Nxh8 {[%clk 0:02:29]}  Rxh8 {[%clk 0:00:38]} 19. Qg4 {[%clk 0:02:26]}  g6 {[%clk 0:00:33]} 20. f5 {[%clk 0:02:24]}  Ne5 {[%clk 0:00:25]} 21. Qa4 {[%clk 0:02:12]}  gxf5 {[%clk 0:00:18]} 22. Qxa7 {[%clk 0:02:12]}  Rf8 {[%clk 0:00:16]} 23. Bh6 {[%clk 0:02:06]}  Rf6 {[%clk 0:00:16]} 24. Qa8+ {[%clk 0:02:03]}  Qb8 {[%clk 0:00:15]} 25. Qa4 {[%clk 0:02:03]}  Qc7 {[%clk 0:00:11]} 26. Bg7 {[%clk 0:02:00]}  Rxe6 {[%clk 0:00:11]} 27. Rxf5 {[%clk 0:02:00]}  Bd8 {[%clk 0:00:10]} 28. Bxe5 {[%clk 0:01:57]}  dxe5 {[%clk 0:00:09]} 29. Rd1 {[%clk 0:01:56]}  d4 {[%clk 0:00:09]} 30. Qc4 {[%clk 0:01:56]}  Re7 {[%clk 0:00:07]} 31. Re1 {[%clk 0:01:55]}  Kb8 {[%clk 0:00:07]} 32. Qd5 {[%clk 0:01:54]}  Ka7 {[%clk 0:00:04]} 33. Rfxe5 {[%clk 0:01:53]}  Rxe5 {[%clk 0:00:04]} 34. Qxe5 {[%clk 0:01:54]}  Qc6 {[%clk 0:00:03]} 35. Qe4 {[%clk 0:01:53]}  Qb5 {[%clk 0:00:03]} 36. Qd3 {[%clk 0:01:52]}  Qa5 {[%clk 0:00:03]} 37. Qb3 {[%clk 0:01:51]}  Bg5 {[%clk 0:00:03]} 38. Re6 {[%clk 0:01:31]}  Be3+ {[%clk 0:00:02]} 39. Rxe3 {[%clk 0:01:17]}  dxe3 {[%clk 0:00:00]} 40. Qxe3 {[%clk 0:01:18]} 1-0


[Site "https://www.chess.com"]

[Event "Titled Tuesday Blitz August 15 Late 2023"]
[White "KrokerGuy"]
[Black "Avila Rodriguez, Joshua Ad"]
[BlackFideId "5126444"]
[WhiteElo "2450"]
[BlackElo "2479"]
[Result "1-0"]
[Round "10"]
[TimeControl "180+1"]
[Date "2023.08.15"]
[WhiteClock "0:00:39"]
[BlackClock "0:01:27"]
[Board "76"]

1. e4 {[%clk 0:03:00]}  c5 {[%clk 0:02:59]} 2. Nf3 {[%clk 0:03:01]}  d6 {[%clk 0:03:00]} 3. d4 {[%clk 0:03:02]}  cxd4 {[%clk 0:03:01]} 4. Nxd4 {[%clk 0:03:02]}  Nf6 {[%clk 0:03:01]} 5. Nc3 {[%clk 0:03:03]}  a6 {[%clk 0:03:01]} 6. Bg5 {[%clk 0:03:03]}  Nbd7 {[%clk 0:03:00]} 7. Qe2 {[%clk 0:03:03]}  e6 {[%clk 0:02:59]} 8. f4 {[%clk 0:03:02]}  Qc7 {[%clk 0:02:58]} 9. O-O-O {[%clk 0:03:02]}  Be7 {[%clk 0:02:58]} 10. Kb1 {[%clk 0:03:02]}  b5 {[%clk 0:02:56]} 11. a3 {[%clk 0:03:02]}  Bb7 {[%clk 0:02:56]} 12. g4 {[%clk 0:03:03]}  h6 {[%clk 0:02:49]} 13. Bh4 {[%clk 0:03:03]}  Nxe4 {[%clk 0:02:38]} 14. Nxe4 {[%clk 0:02:49]}  Bxh4 {[%clk 0:02:37]} 15. Nf5 {[%clk 0:02:48]}  Be7 {[%clk 0:02:27]} 16. Nfxd6+ {[%clk 0:02:42]}  Kf8 {[%clk 0:02:15]} 17. Nxb7 {[%clk 0:02:40]}  Qxb7 {[%clk 0:02:16]} 18. Bg2 {[%clk 0:02:40]}  Rd8 {[%clk 0:02:02]} 19. Rd3 {[%clk 0:02:06]}  Qc7 {[%clk 0:01:59]} 20. Rhd1 {[%clk 0:02:04]}  Nf6 {[%clk 0:01:39]} 21. Nxf6 {[%clk 0:01:10]}  gxf6 {[%clk 0:01:39]} 22. Rxd8+ {[%clk 0:00:57]}  Bxd8 {[%clk 0:01:38]} 23. Qe4 {[%clk 0:00:57]}  Kg7 {[%clk 0:01:36]} 24. h4 {[%clk 0:00:56]}  Be7 {[%clk 0:01:36]} 25. Bf1 {[%clk 0:00:43]}  Rb8 {[%clk 0:01:29]} 26. Bd3 {[%clk 0:00:39]}  b4 {[%clk 0:01:29]} 27. Qh7+ {[%clk 0:00:38]}  Kf8 {[%clk 0:01:27]} 28. Qh8# {[%clk 0:00:39]} 1-0


[Site "https://www.chess.com"]